bitfinex/quotes_SOLUSD_20250415
["timestamp","ask_amount","ask_price","bid_price","bid_amount"]
[1744755307721,11.02,127.15,127.13,11.7568865]
[1744755308928,11.02,127.15,127.13,19.62252677]
[1744755309130,11.02,127.15,127.13,11.7568865]
[1744755309332,18.64964886,127.14,127.11,83.03]
[1744755310539,18.64964886,127.14,127.11,0.03]
[1744755310540,30.40653536,127.14,127.11,0.03]
[1744755310835,16.78747222,127.13,127.11,0.03]
[1744755311435,24.65344381,127.13,127.11,0.03]
[1744755311612,11.02,127.12,127.11,0.03]
[1744755312416,16.7951762,127.12,127.11,0.03]
[1744755313137,11.02,127.12,127.11,0.03]
[1744755313332,11.02,127.12,127.11,11.7868865]
[1744755313841,29.66964886,127.12,127.11,11.7868865]
[1744755315033,29.66964886,127.12,127.11,0.03]
[1744755317216,11.02,127.12,127.11,11.7868865]
[1744755318645,11.02,127.12,127.11,0.03]
[1744755318646,29.66964886,127.12,127.11,0.03]
[1744755319034,57.08357968,127.12,127.11,0.03]
[1744755319430,59.96867203,127.12,127.11,0.03]
[1744755319832,65.73534758,127.12,127.11,0.03]
[1744755320542,38.79181043,127.1,127.09,0.03]
[1744755320726,50.54869693,127.1,127.09,0.03]
[1744755321037,58.41651754,127.1,127.09,0.03]
[1744755321239,61.30160989,127.1,127.09,1e-08]
[1744755321942,35.16923737,127.1,127.09,1e-08]
[1744755322422,8.6517679,127.1,127.09,11.75688651]
[1744755322628,2.88509235,127.1,127.09,11.75688651]
[1744755322822,11.7568865,127.14,127.09,11.75688651]
[1744755323028,18.64964886,127.13,127.09,11.75688651]
[1744755323251,11.0,127.12,127.09,11.75688651]
[1744755323631,11.0,127.12,127.09,19.62516648]
[1744755323947,18.64964886,127.11,127.09,1e-08]
[1744755324840,30.40653536,127.11,127.09,1e-08]
[1744755325024,11.7568865,127.1,127.09,1e-08]
[1744755325228,38.24529693,127.1,127.09,1e-08]
[1744755325446,44.00023077,127.1,127.09,1e-08]
[1744755326424,46.87598311,127.1,127.09,1e-08]
[1744755327053,54.74380372,127.1,127.09,1e-08]
[1744755327246,38.64964886,127.09,127.08,0.03]
[1744755327454,50.40653536,127.09,127.08,0.03]
[1744755327841,24.33726836,127.1,127.08,0.03]
[1744755327842,8.63068618,127.1,127.08,0.03]
[1744755328051,2.87575234,127.1,127.08,0.03]
[1744755328249,18.64964886,127.11,127.09,11.7568865]
[1744755329449,18.64964886,127.11,127.08,11.7868865]
[1744755329757,18.64964886,127.12,127.08,19.65589402]
[1744755330242,18.64964886,127.12,127.09,11.7568865]
[1744755330850,18.64964886,127.12,127.08,7.89900752]
[1744755330851,18.64964886,127.13,127.11,11.7568865]
[1744755331663,18.64964886,127.13,127.09,19.62510377]
[1744755331972,18.64964886,127.13,127.1,11.7568865]
[1744755333758,18.64964886,127.13,127.1,19.62469466]
[1744755335051,18.64964886,127.13,127.1,11.7568865]
[1744755335767,18.64964886,127.13,127.09,7.86812967]
[1744755335944,18.64964886,127.13,127.11,11.7568865]
[1744755336768,18.64964886,127.13,127.09,19.62501617]
[1744755336961,18.64964886,127.13,127.08,7.89905886]
[1744755337145,38.2726445,127.13,127.08,0.03]
[1744755337346,38.2726445,127.13,127.08,11.7868865]
[1744755337963,30.40653536,127.13,127.09,11.7568865]
[1744755338156,18.64964886,127.13,127.1,11.7568865]
[1744755338549,26.51563215,127.13,127.09,11.7568865]
[1744755338757,38.27251865,127.13,127.09,11.7568865]
[1744755339082,26.51563215,127.13,127.09,11.7568865]
[1744755339666,26.51563215,127.13,127.09,19.62509641]
[1744755342868,18.64964886,127.13,127.1,11.7568865]
[1744755344775,18.64964886,127.13,127.1,19.6245233]
[1744755345273,18.64964886,127.13,127.1,11.7568865]
[1744755346878,18.04964886,127.13,127.1,11.7568865]
[1744755347181,11.0,127.12,127.1,19.62458374]
[1744755348780,18.64964886,127.11,127.1,19.62458374]
[1744755348962,18.64964886,127.11,127.1,11.7568865]
[1744755349164,18.64964886,127.11,127.1,7.52714336]
[1744755349773,18.64964886,127.11,127.1,15.39496397]
[1744755350165,11.0,127.12,127.1,15.39496397]
[1744755350875,18.64964886,127.11,127.1,7.52714336]
[1744755352482,18.64964886,127.11,127.09,15.39530672]
[1744755353896,11.0,127.12,127.09,15.39530672]
[1744755354098,24.41522774,127.11,127.09,15.39530672]
[1744755354967,18.64964886,127.11,127.09,15.39530672]
[1744755355777,29.64964886,127.11,127.09,15.39530672]
[1744755356283,5.76657685,127.1,127.09,15.39530672]
[1744755357201,29.64964886,127.11,127.09,15.39530672]
[1744755358904,18.64964886,127.1,127.08,0.03]
[1744755359116,18.64964886,127.1,127.08,15.42618759]
[1744755359419,11.0,127.11,127.08,15.42618759]
[1744755360020,18.64964886,127.1,127.08,7.55714336]
[1744755361107,18.64964886,127.1,127.08,7.55714336]
[1744755361307,18.64964886,127.1,127.08,0.03]
[1744755361308,34.0452319,127.09,127.08,0.03]
[1744755361515,18.64964886,127.09,127.08,0.03]
[1744755362010,27.29977195,127.09,127.08,0.03]
[1744755364696,35.16821163,127.09,127.08,0.03]
[1744755365113,42.69535499,127.09,127.08,0.03]
[1744755365295,42.83751656,127.09,127.08,0.03]
[1744755365814,42.83751656,127.09,127.07,0.03]
[1744755365815,18.64964886,127.08,127.07,0.03]
[1744755366022,56.28536566,127.08,127.07,0.03]
[1744755366226,59.16874002,127.08,127.07,0.03]
[1744755366435,0.14216157,127.07,127.06,2.8274892]
[1744755366718,311.91588065,127.07,127.06,1e-08]
[1744755367128,314.79925501,127.07,127.06,1e-08]
[1744755367309,18.79181043,127.04,127.03,0.03]
[1744755367511,43.07352442,127.04,127.03,0.03]
[1744755367711,45.95084402,127.04,127.03,0.03]
[1744755367922,45.95063499,127.04,127.03,0.03]
[1744755368603,53.82217151,127.04,127.03,0.03]
[1744755370259,38.28133006,127.04,127.03,0.03]
[1744755370604,35.40398228,127.04,127.03,0.03]
[1744755370902,11.0,127.04,127.03,0.03]
[1744755371637,18.52714336,127.04,127.03,0.03]
[1744755371799,11.0,127.04,127.03,0.03]
[1744755375631,11.0,127.04,127.03,7.55714336]
[1744755376130,11.0,127.04,127.03,0.03]
[1744755377611,45.19049031,127.04,127.03,0.03]
[1744755378614,50.92104789,127.04,127.03,0.03]
[1744755378815,38.64964886,127.03,127.02,0.03]
[1744755379031,46.17679222,127.03,127.02,0.03]
[1744755379206,18.79181043,127.03,127.02,0.03]
[1744755379417,26.17679222,127.03,127.02,0.03]
[1744755380337,34.0489484,127.03,127.02,0.03]
[1744755383531,26.52180504,127.03,127.02,0.03]
[1744755383834,11.0,127.04,127.02,0.03]
[1744755386032,18.87164691,127.04,127.02,0.03]
[1744755387542,11.0,127.04,127.02,0.03]
[1744755388121,18.87171625,127.04,127.02,0.03]
[1744755389343,11.0,127.04,127.02,0.03]
[1744755389726,18.64964886,127.03,127.02,0.03]
[1744755390749,26.52180504,127.03,127.02,0.03]
[1744755391549,18.64964886,127.03,127.02,0.03]
[1744755392049,18.64964886,127.03,127.02,7.55714336]
[1744755397156,18.64964886,127.03,127.02,15.4299193]
[1744755397337,18.64964886,127.03,127.02,7.55714336]
[1744755397961,18.64964886,127.03,127.02,15.4299193]
[1744755398259,11.0,127.04,127.02,15.4299193]
[1744755398445,18.64964886,127.03,127.02,15.4299193]
[1744755399060,18.64964886,127.03,127.02,7.55714336]
[1744755399960,18.64964886,127.03,127.02,15.4299193]
[1744755401373,18.64964886,127.03,127.02,7.55714336]
[1744755401861,11.0,127.04,127.02,7.55714336]
[1744755403065,18.64964886,127.03,127.02,0.03]
[1744755403256,26.31895379,127.03,127.02,0.03]
[1744755403459,83.67895956,127.03,127.02,0.03]
[1744755403756,53.42822455,127.03,126.97,90.55714336]
[1744755403949,18.64964886,127.0,126.97,90.55714336]
[1744755404148,18.64964886,126.98,126.97,83.03]
[1744755405246,26.5249048,126.98,126.97,83.03]
[1744755405441,32.26436071,126.98,126.97,0.03]
[1744755405649,39.79150407,126.98,126.97,0.03]
[1744755406255,24.38910477,126.98,126.97,0.03]
[1744755406569,18.64964886,126.98,126.97,0.03]
[1744755408379,34.05204816,126.98,126.97,0.03]
[1744755409465,39.79434454,126.98,126.97,0.03]
[1744755409652,47.78030611,126.98,126.97,0.03]
[1744755409852,50.65093424,126.98,126.97,0.03]
[1744755412148,27.26257337,126.98,126.97,0.03]
[1744755413077,24.39194524,126.98,126.97,7.55714336]
[1744755413277,11.0,126.99,126.97,7.55714336]
[1744755413573,11.0,126.99,126.97,0.03]
[1744755413949,11.0,126.99,126.97,7.55714336]
[1744755414673,11.0,126.99,126.97,0.03]
[1744755416154,29.64964886,126.99,126.97,0.03]
[1744755417654,37.52428744,126.99,126.97,0.03]
[1744755418071,29.64964886,126.99,126.97,0.03]
[1744755418275,11.0,126.99,126.97,0.03]
[1744755418592,11.0,126.99,126.96,17.72243109]
[1744755420576,11.0,126.99,126.98,11.78605653]
[1744755420780,11.0,127.01,126.98,11.78605653]
[1744755420981,11.0,127.01,126.99,11.78605653]
[1744755421584,11.0,127.01,126.99,19.66066354]
[1744755422094,11.0,127.01,127.0,11.78605653]
[1744755423496,11.0,127.01,127.0,19.66007227]
[1744755423896,18.64964886,127.05,127.0,19.66007227]
[1744755423897,29.64964886,127.05,127.0,19.66007227]
[1744755424076,29.64964886,127.05,127.0,27.55905511]
[1744755424390,29.64964886,127.05,127.02,11.78605653]
[1744755424562,29.64964886,127.05,127.0,27.55905511]
[1744755424762,29.64964886,127.05,127.02,11.78605653]
[1744755425497,49.30711684,127.05,127.01,11.78605653]
[1744755425793,49.30711684,127.05,127.01,19.65918224]
[1744755426965,11.78605653,127.03,126.98,102.66114352]
[1744755427288,18.64964886,127.01,126.98,102.66114352]
[1744755428785,18.64964886,127.02,126.98,102.66114352]
[1744755428975,18.64964886,127.02,127.01,11.78605653]
[1744755429159,30.65707734,127.05,127.01,11.78605653]
[1744755429365,18.64964886,127.04,127.01,11.78605653]
[1744755429580,18.64964886,127.04,127.03,11.78605653]
[1744755430175,18.64964886,127.04,127.02,11.78605653]
[1744755430374,18.64964886,127.04,127.01,11.78605653]
[1744755430568,18.64964886,127.04,127.01,19.65913871]
[1744755430766,245.46,127.07,127.03,11.78605653]
[1744755430964,0.063,127.08,127.06,11.78605653]
[1744755431172,0.063,127.08,127.07,11.78605653]
[1744755431476,18.71264886,127.08,127.07,11.78605653]
[1744755432369,0.063,127.08,127.07,11.78605653]
[1744755432574,0.063,127.08,127.07,19.65573466]
[1744755432761,18.71264886,127.08,127.07,19.65573466]
[1744755432967,18.71264886,127.08,127.06,19.6560827]
[1744755433162,0.063,127.08,127.06,19.6560827]
[1744755433375,18.71264886,127.08,127.06,19.6560827]
[1744755433884,18.71264886,127.08,127.05,19.65677176]
[1744755434268,18.71264886,127.08,127.06,11.78605653]
[1744755435191,18.71264886,127.08,127.06,19.65630407]
[1744755435499,0.063,127.08,127.07,11.78605653]
[1744755435792,1e-08,127.08,127.07,106.57211306]
[1744755436094,0.063,127.12,127.09,26.0]
[1744755436273,0.063,127.12,127.11,11.78605653]
[1744755437087,0.063,127.12,127.11,19.65325816]
[1744755437392,0.063,127.12,127.11,26.67578712]
[1744755437774,0.063,127.12,127.1,26.67610694]
[1744755437975,0.063,127.12,127.11,18.80858549]
[1744755439096,0.063,127.12,127.11,26.67578712]
[1744755441872,0.063,127.16,127.12,6.4736]
[1744755442078,0.063,127.16,127.15,18.80858549]
[1744755443083,0.063,127.16,127.15,26.67331219]
[1744755443594,0.063,127.16,127.15,52.67331219]
[1744755443776,0.063,127.17,127.15,135.67331219]
[1744755443978,0.063,127.17,127.16,18.80858549]
[1744755444790,0.063,127.17,127.15,90.8647267]
[1744755444998,0.063,127.17,127.15,109.67331219]
[1744755445313,0.063,127.17,127.16,18.80858549]
[1744755445680,0.063,127.17,127.15,83.0]
[1744755445886,11.063,127.17,127.15,83.0]
[1744755447301,11.063,127.17,127.16,26.6726937]
[1744755448074,11.063,127.17,127.16,7.86410821]
[1744755448279,11.063,127.17,127.16,26.6726937]
[1744755452601,0.063,127.18,127.16,135.6726937]
[1744755452784,0.063,127.18,127.17,18.80858549]
[1744755453203,0.063,127.18,127.17,101.80858549]
[1744755453813,0.063,127.18,127.17,109.6720753]
[1744755456511,0.063,127.19,127.17,128.48066079]
[1744755456699,0.063,127.19,127.18,18.80858549]
[1744755458318,0.063,127.19,127.18,26.67145701]
[1744755460614,0.063,127.23,127.18,65.1372213]
[1744755460819,0.063,127.23,127.22,18.80858549]
[1744755462313,0.063,127.23,127.19,7.86225332]
[1744755462518,0.063,127.23,127.21,18.80858549]
[1744755462999,0.063,127.23,127.22,18.80858549]
[1744755464895,0.063,127.23,127.22,26.66898479]
[1744755465091,0.063,127.23,127.22,7.8603993]
[1744755465320,0.063,127.23,127.22,19.59668001]
[1744755466906,0.063,127.23,127.22,11.73628071]
[1744755467814,0.063,127.23,127.22,19.59668001]
[1744755468702,0.063,127.23,127.22,11.73628071]
[1744755469320,0.063,127.23,127.22,19.59668001]
[1744755474432,0.063,127.23,127.22,11.73628071]
[1744755475121,0.063,127.23,127.22,19.59668001]
[1744755477030,0.063,127.23,127.21,7.86073324]
[1744755477320,18.64964886,127.22,127.19,7.86225332]
[1744755477527,18.64964886,127.22,127.19,19.59853403]
[1744755479127,18.64964886,127.22,127.2,11.73628071]
[1744755479730,18.64964886,127.22,127.19,19.59853403]
[1744755480526,18.64964886,127.22,127.2,11.73628071]
[1744755482624,7.8606562,127.22,127.19,11.73628071]
[1744755483031,0.14216157,127.19,127.13,83.03]
[1744755483331,18.64964886,127.17,127.13,94.76628071]
[1744755483714,26.51340972,127.17,127.13,94.76628071]
[1744755484110,26.51340972,127.17,127.13,83.03]
[1744755484111,18.64964886,127.15,127.13,83.03]
[1744755484311,18.64964886,127.15,127.13,0.03]
[1744755484817,30.38592957,127.15,127.13,0.03]
[1744755485018,30.52809114,127.14,127.13,0.03]
[1744755485219,18.64964886,127.14,127.13,0.03]
[1744755486331,29.62964886,127.14,127.13,0.03]
[1744755486712,37.49499414,127.14,127.13,0.03]
[1744755487136,37.63715571,127.14,127.13,0.03]
[1744755489137,29.62964886,127.14,127.13,0.03]
[1744755491757,9.37216345,127.19,127.13,11.76628071]
[1744755491966,10.98,127.18,127.14,11.73628071]
[1744755492142,10.98,127.18,127.17,11.73628071]
[1744755492958,10.98,127.18,127.16,11.73628071]
[1744755494527,10.98,127.18,127.17,11.73628071]
[1744755496229,10.98,127.18,127.13,102.63217042]
[1744755496230,18.98503309,127.18,127.13,102.63217042]
[1744755496547,18.98503309,127.18,127.14,11.73628071]
[1744755498446,18.98503309,127.18,127.13,90.89588971]
[1744755498652,0.14216157,127.16,127.13,83.03]
[1744755499229,18.64964886,127.15,127.13,0.03]
[1744755500531,18.64964886,127.16,127.14,11.73628071]
[1744755500731,18.64964886,127.16,127.13,0.03]
[1744755501040,18.64964886,127.16,127.13,11.76628071]
[1744755501244,18.79181043,127.16,127.13,11.76628071]
[1744755501443,18.79181043,127.16,127.13,0.03]
[1744755501650,18.79181043,127.16,127.13,11.76628071]
[1744755502268,14.48861465,127.17,127.13,11.76628071]
[1744755502556,18.64964886,127.16,127.15,11.73628071]
[1744755503062,18.64964886,127.17,127.15,11.73628071]
[1744755503254,18.64964886,127.17,127.14,11.73628071]
[1744755504064,18.64964886,127.17,127.13,11.76628071]
[1744755505964,18.64964886,127.17,127.14,11.73628071]
[1744755506648,18.64964886,127.17,127.13,0.03]
[1744755506649,18.64964886,127.17,127.16,11.73628071]
[1744755507365,18.64964886,127.17,127.15,11.73628071]
[1744755507752,18.64964886,127.17,127.14,11.73628071]
[1744755508745,26.51332057,127.17,127.13,11.76628071]
[1744755509142,38.24960128,127.17,127.13,0.03]
[1744755509838,0.14216157,127.16,127.13,0.03]
[1744755510043,18.64964886,127.14,127.13,0.03]
[1744755510253,18.79181043,127.14,127.13,0.03]
[1744755510661,26.65715571,127.14,127.13,0.03]
[1744755510938,18.64964886,127.12,127.11,0.03]
[1744755511157,41.36592957,127.12,127.11,0.03]
[1744755511762,41.50809114,127.12,127.11,0.03]
[1744755512964,49.37467389,127.12,127.11,0.03]
[1744755513170,37.63839318,127.12,127.11,0.03]
[1744755513543,29.62964886,127.12,127.11,0.03]
[1744755516367,37.49623161,127.12,127.11,0.03]
[1744755517645,29.62964886,127.12,127.11,0.03]
[1744755518664,37.49623161,127.12,127.11,0.03]
[1744755518863,56.46344555,127.12,127.11,0.03]
[1744755521149,0.14216157,127.09,127.07,0.03]
[1744755521357,37.47470123,127.08,127.07,0.03]
[1744755521664,18.64964886,127.08,127.07,0.03]
[1744755522265,26.51870772,127.08,127.07,0.03]
[1744755523371,18.64964886,127.08,127.07,0.03]
[1744755523666,18.64964886,127.08,127.07,18.85505237]
[1744755523862,10.98,127.12,127.07,18.85505237]
[1744755524063,10.98,127.12,127.1,18.82505237]
[1744755524268,10.98,127.12,127.09,18.82505237]
[1744755524944,18.64964886,127.11,127.1,18.82505237]
[1744755525951,18.64964886,127.11,127.09,18.82505237]
[1744755526152,18.64964886,127.11,127.1,18.82505237]
[1744755527372,18.64964886,127.11,127.08,7.8687537]
[1744755527559,18.64964886,127.11,127.09,18.82505237]
[1744755527759,18.64964886,127.11,127.09,26.69328431]
[1744755528172,18.64964886,127.11,127.09,18.82505237]
[1744755528767,18.64964886,127.11,127.08,26.69379605]
[1744755531067,26.51689833,127.11,127.07,18.85505237]
[1744755531556,45.3419507,127.11,127.07,18.85505237]
[1744755531757,26.51689833,127.11,127.07,0.03]
[1744755531957,45.3419507,127.11,127.07,0.03]
[1744755532164,26.51689833,127.11,127.07,18.85505237]
[1744755532366,18.64964886,127.11,127.08,18.82505237]
[1744755532775,26.51686436,127.11,127.08,18.82505237]
[1744755532974,18.64964886,127.11,127.08,18.82505237]
[1744755533156,18.64964886,127.11,127.07,0.03]
[1744755533362,18.64964886,127.11,127.08,18.82505237]
[1744755533967,18.64964886,127.11,127.09,18.82505237]
[1744755534974,18.64964886,127.09,127.07,0.03]
[1744755535189,11.91426839,127.09,127.07,0.03]
[1744755535411,30.56391725,127.08,127.07,0.03]
[1744755536085,38.43297611,127.08,127.07,0.03]
[1744755536576,26.66086929,127.08,127.07,0.03]
[1744755536891,26.51870772,127.08,127.07,0.03]
[1744755537097,18.64964886,127.08,127.07,0.03]
[1744755540702,18.64964886,127.11,127.07,11.80210682]
[1744755540908,10.98,127.12,127.1,11.77210682]
[1744755541073,10.98,127.12,127.11,11.77210682]
[1744755541281,10.98,127.12,127.07,0.03]
[1744755541587,30.42175568,127.11,127.07,0.03]
[1744755541891,11.77210682,127.1,127.07,0.03]
[1744755542078,30.42175568,127.11,127.07,0.03]
[1744755542895,10.98,127.12,127.1,11.77210682]
[1744755543191,29.62964886,127.12,127.11,11.77210682]
[1744755543794,10.98,127.12,127.11,11.77210682]
[1744755544004,29.72964886,127.16,127.11,11.77210682]
[1744755544179,29.72964886,127.16,127.1,7.7901]
[1744755544378,29.72964886,127.16,127.12,11.77210682]
[1744755544982,29.72964886,127.16,127.12,19.63810763]
[1744755545808,29.72964886,127.16,127.12,7.86600081]
[1744755545986,18.64964886,127.14,127.1,7.86782061]
[1744755546189,11.77210682,127.14,127.1,7.86782061]
[1744755546707,18.64964886,127.12,127.09,11.77210682]
[1744755546906,18.64964886,127.12,127.1,7.86782061]
[1744755547099,18.64964886,127.13,127.09,19.64028852]
[1744755547406,11.91426839,127.1,127.07,0.03]
[1744755547593,30.42175568,127.08,127.07,0.03]
[1744755548102,18.64964886,127.08,127.07,0.03]
[1744755550607,24.38152683,127.08,127.07,0.03]
[1744755551612,18.64964886,127.08,127.07,0.03]
[1744755552210,38.43297611,127.08,127.07,0.03]
[1744755552515,26.66086929,127.08,127.07,0.03]
[1744755553215,18.79181043,127.08,127.07,0.03]
[1744755553409,24.528931,127.08,127.07,0.03]
[1744755553608,24.38676943,127.08,127.07,0.03]
[1744755557511,24.38676943,127.08,127.07,11.80210682]
[1744755557924,11.08,127.09,127.07,11.80210682]
[1744755558110,11.08,127.09,127.08,11.77210682]
[1744755558314,29.72964886,127.13,127.08,11.77210682]
[1744755558505,41.50175568,127.13,127.08,11.77210682]
[1744755558708,18.64964886,127.11,127.08,11.77210682]
[1744755558896,18.64964886,127.11,127.07,19.67125413]
[1744755559506,18.64964886,127.11,127.08,11.77210682]
[1744755559711,18.64964886,127.11,127.09,11.77210682]
[1744755560118,18.64964886,127.12,127.08,11.77210682]
[1744755560821,26.51623336,127.12,127.08,19.64089193]
[1744755561526,26.51623336,127.12,127.08,11.77210682]
[1744755561834,11.91426839,127.11,127.07,0.03]
[1744755562500,18.64964886,127.09,127.07,0.03]
[1744755562815,37.74086929,127.08,127.07,0.03]
[1744755563015,49.51297611,127.08,127.07,0.03]
[1744755563200,55.25277489,127.08,127.07,0.03]
[1744755564022,58.12156398,127.08,127.07,0.03]
[1744755566911,46.34945716,127.08,127.07,0.03]
[1744755567442,43.48066807,127.08,127.07,0.03]
[1744755569517,46.35096259,127.08,127.07,0.03]
[1744755570442,58.12306941,127.08,127.07,0.03]
[1744755571235,59.74006941,127.08,127.07,0.03]
[1744755572335,46.35096259,127.08,127.07,0.03]
[1744755573235,43.48066807,127.08,127.07,0.03]
[1744755573419,35.46944764,127.08,127.07,11.80210682]
[1744755573625,29.72964886,127.08,127.07,0.03]
[1744755576948,29.72964886,127.08,127.07,11.80210682]
[1744755577331,11.08,127.08,127.07,11.80210682]
[1744755577542,29.84964886,127.12,127.07,11.80210682]
[1744755577717,29.84964886,127.12,127.1,11.77210682]
[1744755578422,29.84964886,127.12,127.07,0.03]
[1744755578423,18.64964886,127.1,127.07,0.03]
[1744755578727,18.64964886,127.1,127.07,7.89955576]
[1744755578917,18.64964886,127.1,127.07,0.03]
[1744755579119,18.64964886,127.1,127.07,11.80210682]
[1744755579319,18.64964886,127.11,127.07,11.80210682]
[1744755580142,18.64964886,127.11,127.08,11.77210682]
[1744755580525,11.2,127.12,127.1,11.77210682]
[1744755580732,11.2,127.12,127.11,11.77210682]
[1744755581027,29.84964886,127.12,127.11,11.77210682]
[1744755581839,18.64964886,127.11,127.09,11.77210682]
[1744755582235,19.06674146,127.12,127.09,11.77210682]
[1744755583650,11.2,127.12,127.09,11.77210682]
[1744755584151,18.64964886,127.11,127.09,19.64043988]
[1744755584326,18.64964886,127.11,127.09,11.77210682]
[1744755584747,18.64964886,127.11,127.09,19.64049307]
[1744755585933,18.64964886,127.11,127.08,7.86905886]
[1744755586347,18.64964886,127.11,127.09,11.77210682]
[1744755588632,18.64964886,127.11,127.09,19.64041727]
[1744755589761,18.64964886,127.11,127.1,11.77210682]
[1744755591967,18.64964886,127.11,127.1,19.63992743]
[1744755592538,11.2,127.12,127.1,19.63992743]
[1744755592738,29.84964886,127.12,127.11,11.77210682]
[1744755593560,29.84964886,127.12,127.11,19.63930845]
[1744755594649,11.2,127.12,127.11,19.63930845]
[1744755595332,11.2,127.12,127.11,21.14290845]
[1744755595537,18.64964886,127.14,127.11,40.81091254]
[1744755595736,18.64964886,127.15,127.11,7.86720163]
[1744755595971,18.64964886,127.15,127.12,11.77210682]
[1744755596170,11.91426839,127.14,127.08,27.5036]
[1744755596335,11.91426839,127.14,127.09,11.77210682]
[1744755596539,0.14216157,127.14,127.1,11.77210682]
[1744755597059,18.64964886,127.12,127.1,19.63960617]
[1744755597257,18.64964886,127.12,127.11,11.77210682]
[1744755597844,18.64964886,127.14,127.11,11.77210682]
[1744755598545,18.64964886,127.14,127.1,11.77210682]
[1744755599563,18.64964886,127.13,127.09,7.86843968]
[1744755600059,11.91426839,127.12,127.07,102.67156634]
[1744755600257,18.64964886,127.1,127.07,83.03]
[1744755600475,18.64964886,127.1,127.09,11.77210682]
[1744755600764,11.1,127.11,127.09,11.77210682]
[1744755600958,29.74964886,127.11,127.1,11.77210682]
[1744755602265,29.74964886,127.11,127.1,19.63992743]
[1744755603145,18.64964886,127.11,127.1,19.63992743]
[1744755603353,18.64964886,127.11,127.1,11.77210682]
[1744755603946,18.64964886,127.11,127.09,7.86812481]
[1744755604255,7.86692935,127.12,127.08,11.77210682]
[1744755604855,18.64964886,127.11,127.09,11.77210682]
[1744755606169,18.64964886,127.12,127.1,11.77210682]
[1744755606767,18.64964886,127.12,127.09,11.77210682]
[1744755607667,18.64964886,127.12,127.07,90.89942934]
[1744755607853,18.64964886,127.12,127.08,11.77210682]
[1744755608470,26.51646847,127.12,127.08,19.64114072]
[1744755608967,26.51646847,127.12,127.08,11.77210682]
[1744755609866,26.51646847,127.12,127.08,19.64105049]
[1744755610770,26.51646847,127.12,127.09,11.77210682]
[1744755610969,18.64964886,127.13,127.1,11.77210682]
[1744755611183,18.64964886,127.13,127.12,11.77210682]
[1744755611349,11.1,127.14,127.12,11.77210682]
[1744755611549,11.1,127.14,127.13,11.77210682]
[1744755611764,37.61512738,127.14,127.12,11.77210682]
[1744755612247,29.74964886,127.14,127.11,11.77210682]
[1744755614072,18.64964886,127.13,127.09,7.86810113]
[1744755614366,18.64964886,127.13,127.1,11.77210682]
[1744755614565,18.64964886,127.13,127.11,11.77210682]
[1744755614971,18.96538268,127.14,127.11,11.77210682]
[1744755615173,18.96538268,127.14,127.11,7.52562208]
[1744755615767,5.74465192,127.13,127.11,7.52562208]
[1744755616262,18.96538268,127.14,127.11,7.52562208]
[1744755617859,11.1,127.14,127.13,7.52562208]
[1744755618445,16.85868015,127.14,127.13,7.52562208]
[1744755619454,35.50832901,127.14,127.13,7.52562208]
[1744755619772,24.40832901,127.14,127.13,7.52562208]
[1744755619974,24.40832901,127.14,127.13,15.39158605]
[1744755620676,18.64964886,127.14,127.13,15.39158605]
[1744755621383,18.64964886,127.13,127.1,7.86782061]
[1744755621675,18.64964886,127.14,127.1,15.39344269]
[1744755622668,18.64964886,127.14,127.11,7.52562208]
[1744755623057,5.76193555,127.13,127.11,7.52562208]
[1744755623258,5.76193555,127.13,127.11,11.7590673]
[1744755623482,5.76193555,127.13,127.11,19.62577525]
[1744755623677,5.76193555,127.13,127.12,11.7590673]
[1744755624287,18.64964886,127.15,127.12,11.7590673]
[1744755624776,2.88125401,127.14,127.12,11.7590673]
[1744755625077,8.64376203,127.14,127.12,11.7590673]
[1744755625384,5.76250802,127.14,127.12,11.7590673]
[1744755625682,29.74964886,127.15,127.12,19.6254902]
[1744755627381,5.76135031,127.14,127.12,19.6254902]
[1744755628384,29.74964886,127.15,127.12,19.6254902]
[1744755628884,29.74964886,127.15,127.13,11.7590673]
[1744755629480,29.74964886,127.15,127.12,11.7590673]
[1744755630380,5.76146658,127.14,127.12,11.7590673]
[1744755630896,5.76146658,127.14,127.13,11.7590673]
[1744755631380,5.76146658,127.14,127.13,31.38409857]